bitfinex-derivatives/quotes_SOLF0:USTF0_20240829
["timestamp","ask_amount","ask_price","bid_price","bid_amount"]
[1724963076696,34.29,139.69,139.58,34.29]
[1724963076892,3.5792,139.66,139.61,3.5805]
[1724963077090,3.5792,139.66,139.58,34.29]
[1724963077597,0.05115904,139.63,139.61,0.04991539]
[1724963078100,5.42,139.69,139.61,0.04991539]
[1724963078397,3.5786,139.69,139.61,0.04991539]
[1724963078604,6.8267,139.7,139.65,3.5793]
[1724963078994,3.63042859,139.69,139.66,0.05120314]
[1724963081098,0.05182859,139.69,139.66,0.05120314]
[1724963081299,5.47182859,139.69,139.66,0.05120314]
[1724963081596,34.29,139.67,139.58,3.5812]
[1724963081791,39.71,139.67,139.58,3.5812]
[1724963081991,3.5804,139.62,139.56,3.51398187]
[1724963082191,5.42,139.65,139.56,3.51398187]
[1724963082600,0.05227221,139.62,139.6,0.05496519]
[1724963084609,3.5805,139.61,139.6,0.05496519]
[1724963086302,3.5814,139.58,139.53,87.23863374]
[1724963086503,34.29,139.59,139.53,87.23863374]
[1724963086707,34.29,139.59,139.53,84.61163374]
[1724963086905,34.29,139.59,139.53,88.22699108]
[1724963087098,3.5816,139.57,139.53,88.22699108]
[1724963087499,0.05207449,139.56,139.53,91.80939108]
[1724963087910,0.05207449,139.56,139.53,88.22699108]
[1724963088305,0.05207449,139.56,139.53,5.02645734]
[1724963089006,0.05207449,139.56,139.53,8.60885734]
[1724963089411,0.05207449,139.56,139.53,3.61535734]
[1724963089606,0.05207449,139.56,139.52,3.5826]
[1724963089908,0.05207449,139.56,139.48,1.3807]
[1724963089909,34.29,139.55,139.48,1.3807]
[1724963090102,0.04535183,139.53,139.48,1.3807]
[1724963090409,0.04535183,139.53,139.48,5.00689162]
[1724963090605,0.04535183,139.53,139.48,1.3807]
[1724963091007,0.04535183,139.53,139.45,5.42]
[1724963091206,34.29,139.5,139.45,2.29336507]
[1724963091408,0.0497707,139.49,139.43,3.60147248]
[1724963091608,0.0497707,139.49,139.41,3.9316]
[1724963091802,0.0497707,139.49,139.44,3.5847]
[1724963092002,0.0497707,139.49,139.44,3.61902665]
[1724963092205,0.0497707,139.49,139.41,12.30892825]
[1724963092206,0.0497707,139.49,139.41,3.9316]
[1724963092605,0.0497707,139.49,139.43,3.5849]
[1724963092606,3.6333707,139.49,139.43,3.5849]
[1724963092812,3.6333707,139.49,139.41,7.60078145]
[1724963093104,3.6333707,139.49,139.45,3.5845]
[1724963093105,0.0497707,139.49,139.45,3.5845]
[1724963093306,0.0497707,139.49,139.41,44.18473624]
[1724963093516,0.0497707,139.49,139.42,5.42]
[1724963094013,0.0497707,139.49,139.45,3.5844]
[1724963094212,0.0497707,139.49,139.42,5.42]
[1724963094402,0.0497707,139.49,139.41,41.89078145]
[1724963095311,0.0497707,139.49,139.42,5.42]
[1724963095520,0.0497707,139.49,139.43,5.42]
[1724963096219,0.0497707,139.49,139.42,34.29]
[1724963096412,0.0497707,139.49,139.42,39.83]
[1724963096610,0.0497707,139.49,139.44,34.29]
[1724963096810,1.3439,139.56,139.45,5.54]
[1724963097013,3.5824,139.54,139.45,5.54]
[1724963097320,3.5824,139.54,139.46,34.29]
[1724963097723,0.05364769,139.51,139.5,3.5832]
[1724963100215,28.64,139.58,139.51,3.583]
[1724963100515,34.29,139.59,139.48,35.6305]
[1724963100818,5.54,139.59,139.53,3.5823]
[1724963101115,1.3122,139.6,139.55,0.048685]
[1724963101116,0.05495815,139.57,139.55,0.048685]
[1724963102126,39.83,139.56,139.48,4.96812462]
[1724963102420,34.29,139.53,139.48,4.96812462]
[1724963103010,0.0528255,139.52,139.49,3.63626124]
[1724963104719,0.0528255,139.52,139.49,0.05276124]
[1724963104916,34.29,139.51,139.49,0.05276124]
[1724963105124,34.29,139.51,139.42,3.5851]
[1724963105422,34.29,139.48,139.39,9.58565468]
[1724963105629,3.5841,139.47,139.41,2.29371377]
[1724963105923,3.5841,139.47,139.42,7.20995863]
[1724963106114,0.05323591,139.46,139.42,3.5852]
[1724963106514,0.05323591,139.46,139.41,3.54342252]
[1724963106713,0.05323591,139.46,139.39,6.08340255]
[1724963106714,0.05323591,139.46,139.39,3.27736491]
[1724963106925,0.05323591,139.46,139.39,9.15971149]
[1724963107117,0.05323591,139.46,139.41,3.5854]
[1724963107718,0.05323591,139.46,139.42,3.5852]
[1724963108111,0.05323591,139.46,139.39,5.54]
[1724963108310,0.05323591,139.46,139.42,3.5851]
[1724963108517,0.05323591,139.46,139.39,11.33955662]
[1724963108724,0.05323591,139.46,139.4,3.27733696]
[1724963108916,0.05323591,139.46,139.39,3.50542912]
[1724963108917,0.05323591,139.46,139.39,20.70035194]
[1724963109116,0.05323591,139.46,139.4,3.27733696]
[1724963109422,0.05323591,139.46,139.4,5.87870748]
[1724963109626,0.05323591,139.46,139.39,5.54]
[1724963109817,0.05323591,139.46,139.39,20.82659381]
[1724963110014,0.05323591,139.46,139.4,2.29417]
[1724963110218,0.05323591,139.46,139.43,3.5849]
[1724963111428,0.05323591,139.46,139.36,13.13742188]
[1724963111429,68.58,139.44,139.34,3.28435547]
[1724963111629,0.05342118,139.4,139.34,3.27898131]
[1724963111817,0.05342118,139.4,139.33,3.27898131]
[1724963112126,0.05342118,139.4,139.34,3.60041091]
[1724963112422,3.5865,139.38,139.32,7.5605]
[1724963112615,0.04583347,139.36,139.33,2.29521678]
[1724963112820,0.04583347,139.36,139.33,5.57533523]
[1724963113019,0.04583347,139.36,139.33,11.66281373]
[1724963113227,0.04583347,139.36,139.34,3.28011845]
[1724963113419,0.04583347,139.36,139.33,8.38269528]
[1724963113420,0.04583347,139.36,139.33,5.57533523]
[1724963114326,0.04583347,139.36,139.32,13.35982011]
[1724963114625,0.04583347,139.36,139.33,2.29521678]
[1724963115129,0.04583347,139.36,139.33,9.16311054]
[1724963115526,0.04583347,139.36,139.34,3.28029376]
[1724963115719,0.04583347,139.36,139.33,5.88281678]
[1724963115924,3.5864,139.38,139.34,3.5873]
[1724963116726,5.54,139.39,139.32,7.47670333]
[1724963116727,3.5862,139.39,139.35,3.5871]
[1724963116925,0.05026766,139.38,139.36,0.04639293]
[1724963118121,0.05026766,139.38,139.37,3.5866]
[1724963119220,0.05026766,139.38,139.36,0.04639293]
[1724963120320,0.05026766,139.38,139.36,3.63319293]
[1724963121434,0.05026766,139.38,139.36,0.04639293]
[1724963122628,3.63686766,139.38,139.36,0.04639293]
[1724963122822,0.05026766,139.38,139.36,0.04639293]
[1724963123637,3.63666766,139.38,139.36,0.04639293]
[1724963124330,3.5866,139.37,139.36,0.04639293]
[1724963124933,0.05026766,139.38,139.36,0.04639293]
[1724963125328,3.63676766,139.38,139.36,0.04639293]
[1724963125528,0.05026766,139.38,139.36,0.04639293]
[1724963126331,3.63686766,139.38,139.36,0.04639293]
[1724963126535,34.34026766,139.38,139.36,0.04639293]
[1724963127037,3.5866,139.37,139.36,0.04639293]
[1724963129537,34.34026766,139.38,139.29,2.6607]
[1724963129737,34.29,139.35,139.29,6.32395514]
[1724963130036,34.29,139.35,139.29,2.6607]
[1724963130242,34.29,139.35,139.29,6.19052413]
[1724963130538,3.5881,139.32,139.29,2.6607]
[1724963130936,3.5881,139.32,139.29,6.33471571]
[1724963131437,3.63339976,139.33,139.29,6.33471571]
[1724963131640,0.04569976,139.33,139.29,6.33471571]
[1724963132138,0.04569976,139.33,139.29,9.92331571]
[1724963132343,0.04569976,139.33,139.29,6.33471571]
[1724963132652,3.63339976,139.33,139.29,6.33471571]
[1724963133037,3.63339976,139.33,139.29,9.92341571]
[1724963133437,0.04569976,139.33,139.29,9.92341571]
[1724963133630,0.04569976,139.33,139.3,3.5884]
[1724963134044,0.04569976,139.33,139.29,6.33471571]
[1724963134241,27.57,139.37,139.29,6.33471571]
[1724963134437,27.57,139.39,139.29,39.66471571]
[1724963134736,3.5868,139.37,139.3,5.76]
[1724963134936,27.57,139.39,139.29,33.90471571]
[1724963135136,0.04655743,139.35,139.29,33.90471571]
[1724963135345,0.04655743,139.35,139.33,0.05039119]
[1724963138035,3.5874,139.34,139.33,0.05039119]
[1724963138245,27.61655743,139.35,139.29,3.67401571]
[1724963138445,27.61655743,139.35,139.27,1.3125]
[1724963138446,31.1581,139.32,139.27,1.3125]
[1724963138642,31.1581,139.32,139.27,4.88331675]
[1724963138838,27.57,139.34,139.27,4.88331675]
[1724963139043,3.5879,139.33,139.28,3.5888]
[1724963139243,0.04747277,139.32,139.28,8.51590671]
[1724963139439,0.04747277,139.32,139.28,3.5888]
[1724963139647,3.63547277,139.32,139.28,3.5888]
[1724963140444,0.04747277,139.32,139.27,9.51237222]
[1724963141152,0.04747277,139.32,139.27,6.22801675]
[1724963141344,0.04747277,139.32,139.27,9.54019027]
[1724963141547,3.63547277,139.32,139.29,3.5885]
[1724963142149,0.04747277,139.32,139.3,3.5884]
[1724963142953,3.5883,139.31,139.27,9.54019027]
[1724963143143,0.04747277,139.32,139.27,9.54019027]
[1724963143654,3.63557277,139.32,139.29,3.5887]
[1724963144747,3.5882,139.31,139.28,3.5888]
[1724963145444,3.5884,139.3,139.27,13.12929027]
[1724963146052,0.04747277,139.32,139.27,6.88299027]
[1724963146253,27.57,139.31,139.27,6.88299027]
[1724963146547,3.5889,139.28,139.27,6.88299027]
[1724963147757,3.5889,139.28,139.27,3.31217352]
[1724963148155,3.5889,139.28,139.23,8.5074]
[1724963148564,3.5889,139.28,139.25,3.5896]
[1724963149257,3.5898,139.25,139.23,12.08611215]
[1724963149461,0.05342413,139.25,139.23,6.32611215]
[1724963150657,5.76,139.33,139.23,6.32611215]
[1724963150861,27.57,139.34,139.23,39.65611215]
[1724963151052,3.588,139.32,139.25,27.57]
[1724963151252,27.57,139.34,139.25,33.33]
[1724963151754,0.04784524,139.31,139.28,0.05268809]
[1724963152554,0.04784524,139.31,139.3,3.5884]
[1724963152856,0.04784524,139.31,139.3,7.14230695]
[1724963154465,3.5873,139.35,139.32,3.5877]
[1724963154763,3.587,139.36,139.32,3.5877]
[1724963155658,0.05060695,139.35,139.33,3.63768982]
[1724963155967,0.05060695,139.35,139.33,0.05008982]
[1724963156171,0.05060695,139.35,139.34,3.5874]
[1724963159167,0.05060695,139.35,139.33,0.05008982]
[1724963159360,27.62060695,139.35,139.33,0.05008982]
[1724963160260,3.5874,139.34,139.33,0.05008982]
[1724963160766,27.62060695,139.35,139.33,0.05008982]
[1724963161660,27.57,139.34,139.33,0.05008982]
[1724963161867,27.57,139.34,139.27,1.3219]
[1724963162264,27.57,139.34,139.27,4.88508188]
[1724963162764,3.63922069,139.32,139.29,0.05371677]
[1724963163864,0.05112069,139.32,139.29,0.05371677]
[1724963164263,0.05112069,139.32,139.29,3.64221677]
[1724963164565,0.05112069,139.32,139.29,0.05371677]
[1724963165970,3.63912069,139.32,139.29,0.05371677]
[1724963166157,0.05112069,139.32,139.29,0.05371677]
[1724963166466,27.62112069,139.32,139.29,0.05371677]
[1724963167170,3.5883,139.31,139.29,0.05371677]
[1724963167467,27.57,139.3,139.22,1.3155]
[1724963167666,3.5891,139.28,139.24,3.5898]
[1724963168364,0.04775387,139.27,139.24,3.5898]
[1724963169367,0.04775387,139.27,139.25,3.5897]
[1724963169564,0.04775387,139.27,139.22,38.00792328]
[1724963169769,0.04775387,139.27,139.22,10.43792328]
[1724963169958,0.04775387,139.27,139.22,3.54242328]
[1724963169959,27.57,139.26,139.22,3.54242328]
[1724963170161,27.57,139.26,139.18,30.1797]
[1724963170465,0.04876565,139.23,139.2,3.5908]
[1724963170672,0.04876565,139.23,139.2,7.18996517]
[1724963170867,0.04876565,139.23,139.2,3.59916517]
[1724963171073,0.04876565,139.23,139.19,5.58]
[1724963171266,0.04876565,139.23,139.19,3.56261555]
[1724963171462,0.04876565,139.23,139.19,5.58]
[1724963171668,0.04876565,139.23,139.2,3.5908]
[1724963172269,0.04876565,139.23,139.19,3.59563264]
[1724963172270,3.63906565,139.23,139.19,3.59563264]
[1724963172468,3.63906565,139.23,139.19,5.58]
[1724963172667,3.63906565,139.23,139.19,9.18711685]
[1724963173173,0.04876565,139.23,139.19,9.18711685]
[1724963173363,0.04876565,139.23,139.19,3.60711685]
[1724963173564,28.8734,139.33,139.22,27.57]
[1724963173763,97.66053173,139.44,139.2,1.3307]
[1724963173764,5.58,139.38,139.29,27.57]
[1724963173970,79.73613173,139.44,139.29,27.57]
[1724963173971,3.5871,139.36,139.31,27.57]
[1724963174267,27.57,139.42,139.33,27.57]
[1724963174468,3.5866,139.38,139.36,0.04876565]
[1724963174868,0.04653102,139.39,139.36,0.04876565]
[1724963175078,3.5866,139.37,139.36,0.04876565]
[1724963175869,3.5865,139.38,139.36,0.04876565]
[1724963176067,0.04653102,139.39,139.36,0.04876565]
[1724963177770,34.44,139.38,139.24,34.44]
[1724963177971,34.44,139.35,139.24,34.44]
[1724963178277,8.2904,139.37,139.28,34.44]
[1724963178278,2.7104,139.37,139.28,34.44]
[1724963178470,37.1504,139.37,139.29,5.58]
[1724963178662,37.1504,139.37,139.28,37.94371867]
[1724963178663,0.04823996,139.34,139.28,37.94371867]
[1724963178963,0.04823996,139.34,139.31,3.5882]
[1724963179169,0.04823996,139.34,139.31,9.1682]
[1724963179966,0.04823996,139.34,139.28,3.50371867]
[1724963180166,0.04823996,139.34,139.27,5.58]
[1724963180467,3.63563996,139.34,139.27,5.58]
[1724963180765,3.63563996,139.34,139.28,3.28398042]
[1724963180766,0.04823996,139.34,139.28,3.28398042]
[1724963180973,0.04823996,139.34,139.28,10.57660528]
[1724963181172,0.04823996,139.34,139.28,7.29262486]
[1724963181471,0.04823996,139.34,139.29,1.3023]
[1724963181774,0.04823996,139.34,139.29,5.8747027]
[1724963182168,0.04823996,139.34,139.29,2.5909]
[1724963182362,0.04823996,139.34,139.29,5.88550338]
[1724963182561,3.63573996,139.34,139.29,3.5887]
[1724963183475,3.63573996,139.34,139.3,3.5884]
[1724963183870,3.5878,139.33,139.28,3.59741345]
[1724963184169,0.04823996,139.34,139.29,3.5886]
[1724963184377,0.05099564,139.33,139.29,3.5886]
[1724963184963,0.05099564,139.33,139.28,3.5404846]
[1724963185170,34.44,139.3,139.25,3.28550841]
[1724963185474,0.05482768,139.29,139.24,1.3291]
[1724963185670,3.5893,139.27,139.24,10.51460841]
[1724963185873,3.5893,139.27,139.25,3.28550841]
[1724963186865,3.5895,139.26,139.25,3.28550841]
[1724963187379,0.05482768,139.29,139.25,3.28550841]
[1724963187579,0.05482768,139.29,139.25,11.68027712]
[1724963187876,3.5893,139.27,139.24,1.3291]
[1724963188276,3.5893,139.27,139.24,10.71366585]
[1724963188478,3.5893,139.27,139.25,3.28645545]
[1724963188684,3.5893,139.27,139.24,7.42720959]
[1724963188978,3.5893,139.27,139.25,3.28645494]
[1724963189479,3.5891,139.28,139.25,3.28645494]
[1724963190277,3.5891,139.28,139.26,3.28645494]
[1724963190476,3.5891,139.28,139.24,5.92507601]
[1724963190477,0.05482768,139.29,139.24,46.4631856]
[1724963190679,0.05482768,139.29,139.25,9.38344346]
[1724963190882,0.05482768,139.29,139.26,3.28533387]
[1724963191178,0.05482768,139.29,139.27,3.28533387]
[1724963191380,0.05482768,139.29,139.27,3.589]
[1724963191677,0.05482768,139.29,139.28,9.18533387]
[1724963191882,0.05482768,139.29,139.28,6.93714539]
[1724963192181,0.05482768,139.29,139.28,12.83714539]
[1724963192377,35.8144,139.38,139.28,21.23052307]
[1724963192573,35.8144,139.38,139.29,11.67781487]
[1724963192779,35.721,139.4,139.3,5.58274896]
[1724963193074,35.721,139.4,139.31,5.58274896]
[1724963193383,35.721,139.4,139.34,0.05358179]
[1724963193384,3.63494731,139.36,139.34,0.05358179]
[1724963193775,0.04794731,139.36,139.34,0.05358179]
[1724963196775,0.04794731,139.36,139.34,9.54098179]
[1724963197285,35.7307,139.46,139.37,3.5865]
[1724963197483,35.7307,139.46,139.37,7.26044225]
[1724963197683,3.5853,139.43,139.38,3.5864]
[1724963197885,35.7307,139.46,139.38,3.5864]
[1724963198189,3.63280815,139.43,139.41,0.04544853]
[1724963198375,3.63473115,139.43,139.41,0.04544853]
[1724963198576,0.04963115,139.43,139.41,0.04544853]
[1724963198784,0.04963115,139.43,139.42,3.5853]
[1724963198785,0.00246028,139.43,139.42,3.5853]
[1724963199083,1.3433,139.52,139.41,34.44]
[1724963199286,1.3433,139.52,139.4,38.08453637]
[1724963199287,3.5834,139.5,139.45,3.5844]
[1724963199784,34.44,139.54,139.43,34.44]
[1724963200082,0.05075722,139.5,139.47,0.04660207]
[1724963200689,0.05075722,139.5,139.47,3.70474779]
[1724963201089,0.05075722,139.5,139.48,3.5836]
[1724963201281,5.9,139.6,139.48,3.5836]
[1724963201282,34.44,139.58,139.49,5.9]
[1724963201585,34.44,139.58,139.5,5.9]
[1724963201783,7.75157251,139.64,139.5,5.9]
[1724963201784,3.5816,139.57,139.51,3.583]
[1724963202186,3.5816,139.57,139.5,5.9]
[1724963202482,0.04556966,139.55,139.53,0.04749897]
[1724963202684,0.04762132,139.55,139.53,0.04749897]
[1724963202982,38.6162,139.64,139.54,34.44]
[1724963203189,3.5809,139.6,139.54,38.05013009]
[1724963203383,3.5809,139.6,139.55,5.9]
[1724963203588,3.5805,139.61,139.55,5.9]
[1724963203884,38.6162,139.64,139.55,5.9]
[1724963204181,37.2558,139.64,139.55,5.9]
[1724963204381,0.046478,139.61,139.58,0.05416877]
[1724963205182,3.627078,139.61,139.58,0.05416877]
[1724963206588,0.046478,139.61,139.58,0.05416877]
[1724963207584,0.046478,139.61,139.58,5.93416877]
[1724963207787,0.046478,139.61,139.58,9.51516877]
[1724963208385,0.046478,139.61,139.58,3.63516877]
[1724963208884,0.046478,139.61,139.6,3.5807]
[1724963209082,0.046478,139.61,139.58,0.05416877]
[1724963209687,0.046478,139.61,139.58,5.93416877]
[1724963209983,0.046478,139.61,139.58,0.05416877]
[1724963210189,0.046478,139.61,139.59,5.9]
[1724963210396,0.046478,139.61,139.58,0.05416877]
[1724963210586,0.046478,139.61,139.59,3.5808]
[1724963210980,0.046478,139.61,139.6,5.9]
[1724963211183,0.046478,139.61,139.59,3.5808]
[1724963211490,0.046478,139.61,139.6,5.9]
[1724963211690,0.046478,139.61,139.6,9.4807]
[1724963212493,0.046478,139.61,139.6,3.5807]
[1724963212694,3.5795,139.65,139.6,9.4807]
[1724963213087,3.5795,139.65,139.6,3.5807]
[1724963213396,3.5795,139.65,139.6,9.4807]
[1724963213695,3.5795,139.65,139.61,0.04698261]
[1724963213696,0.04568778,139.64,139.61,0.04698261]
[1724963213895,0.04568778,139.64,139.62,3.58528902]
[1724963214587,0.04568778,139.64,139.63,3.5799]
[1724963218994,34.44,139.69,139.63,3.5799]
[1724963219396,3.5787,139.68,139.63,3.5799]
[1724963219892,34.44,139.69,139.63,3.5799]
[1724963219893,3.579,139.67,139.63,3.5799]
[1724963220093,0.05252403,139.66,139.64,0.05368886]
[1724963220691,1.31627985,139.7,139.57,5.9]
[1724963220992,34.44,139.58,139.51,7.2496]
[1724963221300,34.44,139.58,139.51,1.3496]
[1724963221589,34.44,139.61,139.53,0.04626394]
[1724963221590,0.05077211,139.56,139.53,0.04626394]
[1724963221795,0.05077211,139.56,139.54,3.63784295]
[1724963221995,0.05077211,139.56,139.53,0.04626394]
[1724963223383,0.05077211,139.56,139.54,3.66669737]
[1724963223592,0.05077211,139.56,139.53,0.04626394]
[1724963224195,0.05077211,139.56,139.53,34.48626394]
[1724963226391,0.05077211,139.56,139.54,3.5823]
[1724963226590,0.05077211,139.56,139.54,3.64969971]
[1724963226893,0.05077211,139.56,139.53,0.04626394]
[1724963227090,3.582,139.55,139.53,0.04626394]
[1724963227390,0.05077211,139.56,139.53,0.04626394]
[1724963227791,3.63257211,139.56,139.53,0.04626394]
[1724963227986,0.05077211,139.56,139.53,0.04626394]
[1724963228593,3.63257211,139.56,139.53,0.04626394]
[1724963228795,0.05077211,139.56,139.53,3.62876394]
[1724963229894,0.05077211,139.56,139.53,34.48626394]
[1724963230398,0.05077211,139.56,139.55,38.022]
[1724963230599,0.05077211,139.56,139.55,7.10400644]
[1724963231998,3.5805,139.61,139.58,3.5811]
[1724963232298,34.44,139.68,139.56,34.44]
[1724963232499,40.34,139.68,139.57,4.90832517]
[1724963232694,40.34,139.68,139.58,5.9]
[1724963232903,34.44,139.68,139.58,5.9]
[1724963233094,3.62901431,139.64,139.61,0.04656912]
[1724963234797,0.04921431,139.64,139.61,0.04656912]
[1724963236002,3.5801,139.63,139.61,0.04656912]
[1724963236199,0.04921431,139.64,139.61,0.04656912]
[1724963236409,0.04921431,139.64,139.61,6.93914264]
[1724963236706,0.04921431,139.64,139.62,4.92597943]
[1724963237201,0.04921431,139.64,139.62,8.23815295]
[1724963237404,0.04921431,139.64,139.63,4.92597943]
[1724963237708,0.04921431,139.64,139.63,8.50587943]
[1724963238107,0.04921431,139.64,139.62,6.89217352]
[1724963238402,0.04921431,139.64,139.62,3.58]
[1724963239100,0.04921431,139.64,139.61,0.04656912]
[1724963239304,0.04921431,139.64,139.61,8.28455134]
[1724963239508,0.04921431,139.64,139.62,4.9258087]
[1724963239706,0.04921431,139.64,139.62,3.58]
[1724963240203,0.04921431,139.64,139.63,3.5799]
[1724963240417,0.04921431,139.64,139.63,8.50513547]
[1724963240612,2.7216,139.7,139.63,4.92523547]
[1724963240802,2.7216,139.7,139.64,8.23740899]
[1724963241006,2.7216,139.7,139.64,11.88492162]
[1724963241307,2.7216,139.7,139.64,3.64751263]
[1724963241503,2.7216,139.7,139.63,3.31217352]
[1724963241712,0.04563384,139.68,139.66,0.0491804]
[1724963243011,3.62433384,139.68,139.66,0.0491804]
[1724963243508,0.04563384,139.68,139.66,0.0491804]
[1724963244406,596.73767948,139.75,139.67,3.5789]
[1724963244611,590.89767948,139.75,139.66,34.44]
[1724963244811,3.5776,139.73,139.68,3.5785]
[1724963245207,3.5776,139.73,139.66,34.44]
[1724963245411,0.0491019,139.71,139.68,0.05318013]
[1724963245814,0.0491019,139.71,139.68,34.49318013]
[1724963246010,0.0491019,139.71,139.7,3.5782]
[1724963247412,3.5764,139.77,139.72,3.5774]
[1724963248010,3.5764,139.77,139.72,7.11438167]
[1724963248412,0.04982388,139.76,139.73,0.05265491]
[1724963248614,0.04982388,139.76,139.73,3.63005491]
[1724963248811,0.04982388,139.76,139.73,0.05265491]
[1724963249414,0.04982388,139.76,139.73,34.49265491]
[1724963249916,0.04982388,139.76,139.75,3.5769]
[1724963250419,0.04982388,139.76,139.73,0.05265491]
[1724963252921,0.04982388,139.76,139.65,37.99931559]
[1724963252922,34.44,139.75,139.65,37.99931559]
[1724963253121,3.578,139.71,139.66,3.579]
[1724963253515,1.2898,139.74,139.66,3.56013933]
[1724963253713,1.2898,139.74,139.67,34.44]
[1724963253915,0.05363601,139.71,139.69,0.04734987]
[1724963255016,0.05363601,139.71,139.69,34.48734987]
[1724963255214,0.05363601,139.71,139.7,3.5782]
[1724963259222,1.3546,139.79,139.69,40.26]
[1724963259421,1.3546,139.79,139.71,34.44]
[1724963259422,3.5765,139.77,139.71,34.44]
[1724963259722,3.5765,139.77,139.73,3.5773]
[1724963260021,0.04748304,139.76,139.74,34.44]
[1724963260213,43.0477,139.84,139.75,3.5767]
[1724963260413,43.0477,139.84,139.74,34.44]
[1724963260414,3.5756,139.8,139.78,0.05489397]
[1724963260617,0.05456221,139.81,139.78,0.05489397]
[1724963260917,3.5757,139.8,139.78,0.05489397]
[1724963261313,0.05456221,139.81,139.78,0.05489397]
[1724963261524,3.5758,139.79,139.78,0.05489397]
[1724963261724,0.05456221,139.81,139.78,0.05489397]
[1724963262124,3.5757,139.8,139.78,0.05489397]
[1724963262517,3.5758,139.79,139.78,0.05489397]
[1724963262719,0.05456221,139.81,139.72,34.44]
[1724963262914,34.44,139.82,139.73,3.57081645]
[1724963263319,3.5764,139.77,139.73,3.57081645]
[1724963263522,369.44,139.82,139.73,7.14801645]
[1724963263717,369.44,139.82,139.76,0.04764512]
[1724963263924,3.5764,139.77,139.76,0.04764512]
[1724963264427,369.44,139.78,139.67,35.8543]
[1724963264621,3.64376323,139.8,139.65,34.44]
[1724963264622,34.44,139.75,139.65,34.44]
[1724963264920,5.82,139.74,139.66,3.579]
[1724963265522,3.5782,139.7,139.69,0.04618744]
[1724963266525,34.49365138,139.71,139.55,12.25888973]
[1724963266727,34.44,139.68,139.57,34.44]
[1724963266927,34.44,139.66,139.58,3.27135344]
[1724963267136,5.82,139.65,139.57,3.50470065]
[1724963267430,0.05048951,139.62,139.55,35.8543]
[1724963267628,3.5809,139.6,139.56,9.34697246]
[1724963267825,3.5809,139.6,139.57,0.04704424]
[1724963271931,3.581,139.59,139.57,0.04704424]
[1724963273839,0.05048951,139.62,139.57,0.04704424]
[1724963274728,3.5809,139.6,139.57,0.04704424]
[1724963275331,3.581,139.59,139.57,0.04704424]
[1724963275538,0.05048951,139.62,139.57,0.04704424]
[1724963276733,3.581,139.59,139.57,0.04704424]
[1724963276947,0.05048951,139.62,139.57,0.04704424]
[1724963278137,3.5808,139.6,139.57,0.04704424]
[1724963280537,0.05048951,139.62,139.57,0.04704424]
[1724963280538,34.49048951,139.62,139.57,0.04704424]
[1724963280839,0.05048951,139.62,139.57,0.04704424]
[1724963281042,3.5826,139.53,139.48,3.5836]
[1724963281236,3.5826,139.53,139.48,3.27563869]
[1724963281436,3.5826,139.53,139.47,10.72760254]
[1724963281737,5.92,139.58,139.48,34.44]
[1724963281934,5.92,139.58,139.48,40.36]
[1724963282142,0.04834196,139.54,139.52,0.05286564]
[1724963282339,0.04834196,139.54,139.52,3.67124692]
[1724963282540,0.04834196,139.54,139.52,0.05286564]
[1724963283245,0.04834196,139.54,139.52,3.627212]
[1724963283440,0.04834196,139.54,139.52,0.05286564]
[1724963283945,0.04834196,139.54,139.52,3.58962122]
[1724963286746,0.04834196,139.54,139.52,7.17232122]
[1724963289250,0.04834196,139.54,139.53,3.5825]
[1724963290452,336.3044,139.61,139.54,3.5822]
[1724963290453,335.0,139.61,139.54,3.5822]
[1724963290641,40.36,139.62,139.54,3.5822]
[1724963290845,3.5813,139.58,139.54,3.5822]
[1724963291547,0.04817489,139.57,139.55,0.0475802]
[1724963295660,3.5817,139.56,139.55,0.0475802]
[1724963306648,0.04817489,139.57,139.55,0.0475802]
[1724963307359,0.04817489,139.57,139.56,3.5817]
[1724963309161,0.04817489,139.57,139.55,0.0475802]
[1724963310960,3.5817,139.56,139.55,0.0475802]
[1724963313660,3.62967489,139.57,139.55,0.0475802]
[1724963314064,0.04817489,139.57,139.55,0.0475802]
[1724963314667,0.04817489,139.57,139.56,34.41]
[1724963315056,335.0,139.66,139.56,34.41]
[1724963315265,335.0,139.66,139.59,34.41]